fUSD/lending_fUSD_20260404
["ID","MTS","AMOUNT","RATE_DAILY","PERIOD"]
[419673875,1775278247139,-150.0,0.00033344,7]
[419673876,1775278247148,-150.0,0.00033344,7]
[419673877,1775278247157,-150.0,0.00033344,7]
[419673878,1775278247166,-150.0,0.00033344,7]
[419673879,1775278247176,-150.92,0.0003336,30]
[419673880,1775278247185,-150.0,0.00033582,7]
[419673881,1775278247196,-150.0,0.00033642,7]
[419673882,1775278247206,-150.0,0.00033741,7]
[419673883,1775278247215,-261.0,0.000339,7]
[419673884,1775278247224,-150.0,0.0003394,7]
[419673885,1775278247233,-150.0,0.0003394,7]
[419673886,1775278247242,-150.0,0.0003394,7]
[419673887,1775278247253,-150.0,0.0003394,7]
[419673888,1775278247262,-150.0,0.0003394,7]
[419673889,1775278247271,-2302.21,0.00033973,2]
[419673890,1775278247281,-150.0,0.00034138,7]
[419673891,1775278247290,-164.53127634,0.00034142,106]
[419673892,1775278247299,-500.0,0.00034169,120]
[419673893,1775278247308,-150.0,0.00034237,7]
[419673894,1775278247318,-476.0,0.0003426,30]
[419673895,1775278247327,-150.0,0.00034297,7]
[419673896,1775278247336,-250.0,0.00034337,36]
[419673897,1775278247346,-283.54,0.0003438,30]
[419673898,1775278247356,-389.0,0.00034421,30]
[419673899,1775278247365,-150.0,0.00034535,7]
[419673900,1775278247375,-150.0,0.00034535,7]
[419673901,1775278247384,-150.0,0.00034535,7]
[419673902,1775278247393,-150.0,0.00034535,7]
[419673903,1775278247419,-150.0,0.00034535,7]
[419673904,1775278247428,-150.0,0.00034535,7]
[419673905,1775278247437,-150.0,0.00034535,7]
[419673906,1775278247446,-150.0,0.00034535,7]
[419673907,1775278247456,-160.9357,0.000346,14]
[419673908,1775278247465,-150.0,0.00034654,7]
[419673909,1775278247474,-160.9357,0.000347,14]
[419673910,1775278247483,-1500.0,0.00034795,2]
[419673911,1775278247492,-160.9357,0.000348,14]
[419673912,1775278247501,-349.769,0.00034818,40]
[419673913,1775278247510,-6567.198,0.00034818,40]
[419673914,1775278247519,-150.0,0.00034833,7]
[419673915,1775278247527,-205.0,0.0003488,30]
[419673916,1775278247536,-160.9357,0.000349,14]
[419673917,1775278247545,-150.0,0.00034932,7]
[419673918,1775278247554,-160.9357,0.00035,14]
[419673919,1775278247564,-261.0,0.00035,14]
[419673920,1775278247574,-150.11915939,0.00035,30]
[419673921,1775278247583,-41544.0,0.00035,2]
[419673922,1775278247593,-50000.0,0.00035,2]
[419673923,1775278247602,-150.0,0.00035012,7]
[419673924,1775278247611,-150.0,0.00035131,7]
[419673925,1775278247620,-150.0,0.00035131,7]
[419673926,1775278247629,-373.1120974,0.00035162,120]
[419673927,1775278247638,-659.5957703,0.00035162,120]
[419673928,1775278247647,-358.4186866,0.00035162,120]
[419673929,1775278247655,-500.0,0.00035162,120]
[419673930,1775278247664,-500.0,0.00035162,120]
[419673931,1775278247673,-500.0,0.00035162,120]
[419673932,1775278247682,-611.3324331,0.00035162,120]
[419673933,1775278247691,-500.0,0.00035162,120]
[419673934,1775278247699,-500.0,0.00035162,120]
[419673935,1775278247709,-500.0,0.00035162,120]
[419673936,1775278247718,-500.0,0.00035162,120]
[419673937,1775278247727,-500.0,0.00035162,120]
[419673938,1775278247736,-249.197605,0.00035162,120]
[419673939,1775278247745,-500.0,0.00035162,120]
[419673940,1775278247754,-166.5888187,0.00035162,120]
[419673941,1775278247763,-500.0,0.00035162,120]
[419673942,1775278247772,-581.8579125,0.00035162,120]
[419673943,1775278247781,-203.2101207,0.00035162,120]
[419673944,1775278247791,-830.0605381,0.00035162,120]
[419673945,1775278247800,-315.0416991,0.00035162,120]
[419673946,1775278247808,-5759.84,0.000352,2]
[419673947,1775278247817,-150.0,0.00035329,7]
[419673948,1775278247826,-150.0,0.00035369,7]
[419673949,1775278247835,-523.0,0.00035407,21]
[419673950,1775278247844,-389.0,0.00035421,30]
[419673951,1775278247852,-150.0,0.00035428,7]
[419673952,1775278247862,-500.0,0.00035603,120]
[419673953,1775278247871,-151.0,0.00035613,14]
[419673954,1775278247880,-157.30297586,0.00035613,9]
[419673955,1775278247889,-500.0,0.00035613,9]
[419673956,1775278247898,-500.0,0.00035613,9]
[419673957,1775278247907,-500.0,0.00035613,9]
[419673958,1775278247916,-500.0,0.00035613,9]
[419673959,1775278247925,-500.0,0.00035613,9]
[419673960,1775278247933,-500.0,0.00035613,9]
[419673961,1775278247942,-500.0,0.00035613,9]
[419673962,1775278247951,-500.0,0.00035613,9]
[419673963,1775278247960,-508.83736131,0.00035613,9]
[419673964,1775278247968,-150.0,0.00035613,9]
[419673965,1775278247978,-150.0,0.00035613,9]
[419673966,1775278247987,-204.97609437,0.00035613,9]
[419673967,1775278247998,-300.0,0.00035615,10]
[419673968,1775278248007,-670.84839751,0.00035615,30]
[419673969,1775278248018,-666.0,0.00035615,30]
[419673970,1775278248028,-673.90400487,0.00035615,9]
[419673971,1775278248039,-673.90400487,0.00035615,9]
[419673972,1775278248047,-1297.89044282,0.00035616,4]
[419673973,1775278248057,-500.0,0.00035616,9]
[419673974,1775278248068,-500.0,0.00035616,9]
[419673975,1775278248077,-500.0,0.00035616,9]
[419673976,1775278248088,-500.0,0.00035616,9]
[419673977,1775278248100,-168.53596403,0.00035616,9]
[419673978,1775278248111,-500.0,0.00035616,9]
[419673979,1775278248121,-503.15467503,0.00035616,9]
[419673980,1775278248131,-500.0,0.00035616,9]
[419673981,1775278248141,-500.0,0.00035616,9]
[419673982,1775278248152,-398.63504451,0.00035616,9]
[419673983,1775278248163,-500.0,0.00035616,9]
[419673984,1775278248174,-500.0,0.00035616,9]
[419673985,1775278248185,-500.0,0.00035616,9]
[419673986,1775278248197,-500.0,0.00035616,9]
[419673987,1775278248206,-500.0,0.00035616,9]
[419673988,1775278248215,-500.0,0.00035616,9]
[419673989,1775278248224,-500.0,0.00035616,9]
[419673990,1775278248233,-500.0,0.00035616,9]
[419673991,1775278248243,-500.0,0.00035616,9]
[419673992,1775278248253,-500.0,0.00035616,9]
[419673993,1775278248262,-500.0,0.00035616,2]
[419673994,1775278248272,-500.0,0.00035616,9]
[419673995,1775278248282,-500.0,0.00035616,9]
[419673996,1775278248292,-500.0,0.00035616,9]
[419673997,1775278248301,-500.0,0.00035616,9]
[419673998,1775278248312,-500.0,0.00035616,9]
[419673999,1775278248322,-500.0,0.00035616,9]
[419674000,1775278248331,-500.0,0.00035616,9]
[419674001,1775278248340,-500.0,0.00035616,9]
[419674002,1775278248349,-500.0,0.00035616,9]
[419674003,1775278248358,-481.24476443,0.00035616,9]
[419674004,1775278248367,-500.0,0.00035616,9]
[419674005,1775278248376,-500.0,0.00035616,9]
[419674006,1775278248386,-500.0,0.00035616,9]
[419674007,1775278248395,-500.0,0.00035616,9]
[419674008,1775278248404,-500.0,0.00035616,9]
[419674009,1775278248413,-500.0,0.00035616,9]
[419674010,1775278248422,-500.0,0.00035616,9]
[419674011,1775278248431,-500.0,0.00035616,9]
[419674012,1775278248440,-500.0,0.00035616,9]
[419674013,1775278248450,-500.0,0.00035616,9]
[419674014,1775278248459,-500.0,0.00035616,9]
[419674015,1775278248468,-308.70028341,0.00035616,9]
[419674016,1775278248477,-1654.57,0.00035616,9]
[419674017,1775278248486,-631.05,0.00035616,9]
[419674018,1775278248495,-500.0,0.00035616,9]
[419674019,1775278248504,-500.0,0.00035616,9]
[419674020,1775278248513,-153.33461235,0.00035616,9]
[419674021,1775278248522,-500.0,0.00035616,9]
[419674022,1775278248531,-500.0,0.00035616,9]
[419674023,1775278248540,-500.0,0.00035616,9]
[419674024,1775278248549,-500.0,0.00035616,9]
[419674025,1775278248558,-500.0,0.00035616,9]
[419674026,1775278248567,-500.0,0.00035616,9]
[419674027,1775278248576,-500.0,0.00035616,9]
[419674028,1775278248585,-606.54,0.00035616,9]
[419674029,1775278248594,-500.0,0.00035616,9]
[419674030,1775278248603,-500.0,0.00035616,9]
[419674031,1775278248612,-500.0,0.00035616,9]
[419674032,1775278248622,-500.0,0.00035616,9]
[419674033,1775278248631,-500.0,0.00035616,9]
[419674034,1775278248640,-500.0,0.00035616,9]
[419674035,1775278248649,-500.0,0.00035616,9]
[419674036,1775278248658,-500.0,0.00035616,9]
[419674037,1775278248667,-500.0,0.00035616,9]
[419674038,1775278248676,-500.0,0.00035616,9]
[419674039,1775278248685,-802.74,0.00035616,9]
[419674040,1775278248694,-500.0,0.00035616,2]
[419674041,1775278248703,-500.0,0.00035616,9]
[419674042,1775278248713,-500.0,0.00035616,9]
[419674043,1775278248722,-500.0,0.00035616,9]
[419674044,1775278248733,-500.0,0.00035616,9]
[419674045,1775278248743,-500.0,0.00035616,9]
[419674046,1775278248752,-1123.46,0.00035616,9]
[419674047,1775278248762,-500.0,0.00035616,9]
[419674048,1775278248772,-500.0,0.00035616,9]
[419674049,1775278248783,-500.0,0.00035616,9]
[419674050,1775278248793,-500.0,0.00035616,9]
[419674051,1775278248803,-173.53214365,0.00035616,9]
[419674052,1775278248813,-500.0,0.00035616,9]
[419674053,1775278248823,-500.0,0.00035616,9]
[419674054,1775278248833,-500.0,0.00035616,9]
[419674055,1775278248843,-500.0,0.00035616,9]
[419674056,1775278248852,-1338.82,0.00035616,9]
[419674057,1775278248863,-500.0,0.00035616,9]
[419674058,1775278248874,-500.0,0.00035616,9]
[419674059,1775278248885,-500.0,0.00035616,9]
[419674060,1775278248894,-500.0,0.00035616,9]
[419674061,1775278248905,-500.0,0.00035616,9]
[419674062,1775278248915,-500.0,0.00035616,9]
[419674063,1775278248926,-500.0,0.00035616,9]
[419674064,1775278248937,-500.0,0.00035616,9]
[419674065,1775278248947,-533.63706347,0.00035616,9]
[419674066,1775278248956,-500.0,0.00035616,9]
[419674067,1775278248964,-500.0,0.00035616,9]
[419674068,1775278248976,-500.0,0.00035616,9]
[419674069,1775278248986,-500.0,0.00035616,9]
[419674070,1775278248996,-1209.29,0.00035616,9]
[419674071,1775278249006,-500.0,0.00035616,9]
[419674072,1775278249015,-500.0,0.00035616,9]
[419674073,1775278249024,-500.0,0.00035616,9]
[419674074,1775278249033,-500.0,0.00035616,9]
[419674075,1775278249044,-500.0,0.00035616,9]
[419674076,1775278249053,-500.0,0.00035616,9]
[419674077,1775278249062,-500.0,0.00035616,9]
[419674078,1775278249071,-500.0,0.00035616,9]
[419674079,1775278249080,-990.0,0.00035616,9]
[419674080,1775278249089,-500.0,0.00035616,9]
[419674081,1775278249099,-500.0,0.00035616,9]
[419674082,1775278249109,-500.0,0.00035616,9]
[419674083,1775278249119,-500.0,0.00035616,9]
[419674084,1775278249129,-500.0,0.00035616,9]
[419674085,1775278249138,-500.0,0.00035616,9]
[419674086,1775278249147,-500.0,0.00035616,9]
[419674087,1775278249158,-500.0,0.00035616,9]
[419674088,1775278249167,-500.0,0.00035616,9]
[419674089,1775278249177,-500.0,0.00035616,9]
[419674090,1775278249187,-535.5795192,0.00035616,9]
[419674091,1775278249197,-500.0,0.00035616,9]
[419674092,1775278249206,-500.0,0.00035616,9]
[419674093,1775278249216,-500.0,0.00035616,9]
[419674094,1775278249226,-500.0,0.00035616,9]
[419674095,1775278249235,-179.04217061,0.00035616,9]
[419674096,1775278249244,-1194.92,0.00035616,9]
[419674097,1775278249253,-308.20521569,0.00035616,9]
[419674098,1775278249263,-901.08,0.00035616,9]
[419674099,1775278249274,-500.0,0.00035616,9]
[419674100,1775278249283,-500.0,0.00035616,9]
[419674101,1775278249293,-500.0,0.00035616,9]
[419674102,1775278249302,-500.0,0.00035616,9]
[419674103,1775278249312,-500.0,0.00035616,9]
[419674104,1775278249321,-500.0,0.00035616,9]
[419674105,1775278249330,-500.0,0.00035616,9]
[419674106,1775278249341,-500.0,0.00035616,9]
[419674107,1775278249351,-500.0,0.00035616,9]
[419674108,1775278249362,-500.0,0.00035616,9]
[419674109,1775278249372,-610.34,0.00035616,9]
[419674110,1775278249384,-500.0,0.00035616,9]
[419674111,1775278249394,-663.14,0.00035616,9]
[419674112,1775278249403,-500.0,0.00035616,9]
[419674113,1775278249413,-500.0,0.00035616,9]
[419674114,1775278249423,-500.0,0.00035616,9]
[419674115,1775278249433,-1294.2,0.00035616,9]
[419674116,1775278249443,-375.60798138,0.00035616,9]
[419674117,1775278249452,-523.09,0.00035616,9]
[419674118,1775278249462,-500.0,0.00035616,9]
[419674119,1775278249471,-500.0,0.00035616,9]
[419674120,1775278249480,-500.0,0.00035616,9]
[419674121,1775278249489,-500.0,0.00035616,9]
[419674122,1775278249499,-500.0,0.00035616,9]
[419674123,1775278249509,-732.24,0.00035616,9]
[419674124,1775278249518,-500.0,0.00035616,9]
[419674125,1775278249527,-500.0,0.00035616,9]
[419674126,1775278249537,-358.50675121,0.00035616,9]
[419674127,1775278249546,-1263.62,0.00035616,9]
[419674128,1775278249556,-500.0,0.00035616,9]
[419674129,1775278249565,-590.44,0.00035616,9]
[419674130,1775278249575,-500.0,0.00035616,9]
[419674131,1775278249584,-500.0,0.00035616,9]
[419674132,1775278249593,-500.0,0.00035616,9]
[419674133,1775278249603,-518.60260946,0.00035616,9]
[419674134,1775278249613,-500.0,0.00035616,9]
[419674135,1775278249622,-500.0,0.00035616,9]
[419674136,1775278249632,-500.0,0.00035616,9]
[419674137,1775278249642,-500.0,0.00035616,9]
[419674138,1775278249651,-500.0,0.00035616,9]
[419674139,1775278249661,-500.0,0.00035616,9]
[419674140,1775278249671,-500.0,0.00035616,9]
[419674141,1775278249683,-500.0,0.00035616,9]
[419674142,1775278249692,-500.0,0.00035616,9]
[419674143,1775278249702,-500.0,0.00035616,9]
[419674144,1775278249712,-500.0,0.00035616,9]
[419674145,1775278249722,-500.0,0.00035616,9]
[419674146,1775278249734,-500.0,0.00035616,9]
[419674147,1775278249744,-500.0,0.00035616,9]
[419674148,1775278249757,-1130.85,0.00035616,9]
[419674149,1775278249767,-500.0,0.00035616,9]
[419674150,1775278249777,-500.0,0.00035616,9]
[419674151,1775278249786,-500.0,0.00035616,9]
[419674152,1775278249796,-270.38376607,0.00035616,9]
[419674153,1775278249806,-500.0,0.00035616,9]
[419674154,1775278249815,-500.0,0.00035616,9]
[419674155,1775278249825,-500.0,0.00035616,9]
[419674156,1775278249834,-500.0,0.00035616,9]
[419674157,1775278249844,-500.0,0.00035616,9]
[419674158,1775278249854,-500.0,0.00035616,9]
[419674159,1775278249863,-500.0,0.00035616,9]
[419674160,1775278249873,-500.0,0.00035616,9]
[419674161,1775278249882,-500.18,0.00035616,9]
[419674162,1775278249891,-500.0,0.00035616,9]
[419674163,1775278249901,-538.46842249,0.00035616,9]
[419674164,1775278249911,-500.0,0.00035616,9]
[419674165,1775278249921,-500.0,0.00035616,9]
[419674166,1775278249930,-500.0,0.00035616,9]
[419674167,1775278249939,-500.0,0.00035616,9]
[419674168,1775278249949,-500.0,0.00035616,9]
[419674169,1775278249958,-1493.0,0.00035616,9]
[419674170,1775278249968,-500.0,0.00035616,9]
[419674171,1775278249978,-500.0,0.00035616,9]
[419674172,1775278249989,-500.0,0.00035616,2]
[419674173,1775278249999,-500.0,0.00035616,9]
[419674174,1775278250010,-385.73574222,0.00035616,9]
[419674175,1775278250021,-500.0,0.00035616,9]
[419674176,1775278250031,-872.16,0.00035616,9]
[419674177,1775278250042,-500.0,0.00035616,9]
[419674178,1775278250052,-500.0,0.00035616,9]
[419674179,1775278250061,-500.0,0.00035616,9]
[419674180,1775278250071,-1188.81,0.00035616,9]
[419674181,1775278250082,-500.0,0.00035616,9]
[419674182,1775278250092,-500.0,0.00035616,9]
[419674183,1775278250102,-537.09059655,0.00035616,9]
[419674184,1775278250112,-500.0,0.00035616,9]
[419674185,1775278250123,-500.0,0.00035616,9]
[419674186,1775278250133,-500.0,0.00035616,9]
[419674187,1775278250142,-500.0,0.00035616,9]
[419674188,1775278250153,-174.63444888,0.00035616,9]
[419674189,1775278250163,-500.0,0.00035616,9]
[419674190,1775278250173,-500.0,0.00035616,9]
[419674191,1775278250182,-500.0,0.00035616,9]
[419674192,1775278250192,-1665.9,0.00035616,9]
[419674193,1775278250202,-500.0,0.00035616,9]
[419674194,1775278250212,-500.0,0.00035616,9]
[419674195,1775278250222,-500.0,0.00035616,9]
[419674196,1775278250232,-766.85,0.00035616,9]
[419674197,1775278250242,-500.0,0.00035616,9]
[419674198,1775278250252,-500.0,0.00035616,9]
[419674199,1775278250262,-500.0,0.00035616,9]
[419674200,1775278250272,-355.08007104,0.00035616,9]
[419674201,1775278250283,-500.0,0.00035616,9]
[419674202,1775278250293,-213.23487146,0.00035616,9]
[419674203,1775278250303,-574.92,0.00035616,9]
[419674204,1775278250313,-500.0,0.00035616,9]
[419674205,1775278250323,-500.0,0.00035616,9]
[419674206,1775278250333,-500.0,0.00035616,9]
[419674207,1775278250343,-680.22,0.00035616,9]
[419674208,1775278250354,-585.12,0.00035616,9]
[419674209,1775278250364,-500.0,0.00035616,9]
[419674210,1775278250374,-937.98,0.00035616,9]
[419674211,1775278250384,-500.0,0.00035616,9]
[419674212,1775278250394,-1107.5,0.00035616,9]
[419674213,1775278250404,-1557.85,0.00035616,7]
[419674214,1775278250414,-991.17,0.00035616,9]
[419674215,1775278250424,-697.64,0.00035616,9]
[419674216,1775278250434,-500.0,0.00035616,9]
[419674217,1775278250444,-500.0,0.00035616,9]
[419674218,1775278250455,-500.0,0.00035616,9]
[419674219,1775278250465,-1283.56,0.00035616,9]
[419674220,1775278250475,-500.0,0.00035616,9]
[419674221,1775278250485,-1483.98,0.00035616,9]
[419674222,1775278250495,-500.0,0.00035616,9]
[419674223,1775278250505,-500.0,0.00035616,9]
[419674224,1775278250514,-500.0,0.00035616,9]
[419674225,1775278250524,-500.0,0.00035616,9]
[419674226,1775278250534,-500.0,0.00035616,9]
[419674227,1775278250543,-500.0,0.00035616,9]
[419674228,1775278250553,-421.42532917,0.00035616,9]
[419674229,1775278250563,-500.0,0.00035616,9]
[419674230,1775278250573,-526.12,0.00035616,9]
[419674231,1775278250582,-500.0,0.00035616,9]
[419674232,1775278250592,-1518.75,0.00035616,9]
[419674233,1775278250602,-486.4490887,0.00035616,9]
[419674234,1775278250612,-1156.91,0.00035616,9]
[419674235,1775278250621,-500.0,0.00035616,9]
[419674236,1775278250631,-500.0,0.00035616,9]
[419674237,1775278250640,-500.0,0.00035616,9]
[419674238,1775278250650,-500.0,0.00035616,9]
[419674239,1775278250660,-529.3,0.00035616,9]
[419674240,1775278250670,-500.0,0.00035616,9]
[419674241,1775278250679,-500.0,0.00035616,9]
[419674242,1775278250689,-500.0,0.00035616,9]
[419674243,1775278250699,-1587.77,0.00035616,9]
[419674244,1775278250709,-500.0,0.00035616,9]
[419674245,1775278250718,-681.88,0.00035616,9]
[419674246,1775278250728,-500.0,0.00035616,9]
[419674247,1775278250738,-500.0,0.00035616,9]
[419674248,1775278250747,-500.0,0.00035616,9]
[419674249,1775278250757,-500.0,0.00035616,9]
[419674250,1775278250767,-500.0,0.00035616,9]
[419674251,1775278250776,-500.0,0.00035616,9]
[419674252,1775278250786,-500.0,0.00035616,9]
[419674253,1775278250795,-500.0,0.00035616,9]
[419674254,1775278250805,-846.47,0.00035616,9]
[419674255,1775278250815,-500.0,0.00035616,9]
[419674256,1775278250824,-500.0,0.00035616,9]
[419674257,1775278250834,-500.0,0.00035616,9]
[419674258,1775278250844,-500.0,0.00035616,9]
[419674259,1775278250853,-500.0,0.00035616,9]
[419674260,1775278250863,-500.0,0.00035616,9]
[419674261,1775278250872,-500.0,0.00035616,9]
[419674262,1775278250882,-1767.46,0.00035616,9]
[419674263,1775278250892,-500.0,0.00035616,9]
[419674264,1775278250904,-804.46,0.00035616,9]
[419674265,1775278250914,-500.0,0.00035616,9]
[419674266,1775278250923,-500.0,0.00035616,9]
[419674267,1775278250933,-1859.82,0.00035616,9]
[419674268,1775278250943,-500.0,0.00035616,9]
[419674269,1775278250952,-500.0,0.00035616,9]
[419674270,1775278250962,-500.0,0.00035616,9]
[419674271,1775278250972,-1557.38,0.00035616,9]
[419674272,1775278250982,-500.0,0.00035616,9]
[419674273,1775278250993,-500.0,0.00035616,9]
[419674274,1775278251002,-500.0,0.00035616,9]
[419674275,1775278251012,-500.0,0.00035616,9]
[419674276,1775278251021,-500.0,0.00035616,9]
[419674277,1775278251031,-500.0,0.00035616,9]
[419674278,1775278251041,-500.0,0.00035616,9]
[419674279,1775278251051,-500.0,0.00035616,9]
[419674280,1775278251061,-500.0,0.00035616,9]
[419674281,1775278251071,-170.99504,0.00035616,9]
[419674282,1775278251083,-500.0,0.00035616,9]
[419674283,1775278251094,-500.0,0.00035616,9]
[419674284,1775278251104,-1521.07,0.00035616,9]
[419674285,1775278251114,-741.93,0.00035616,9]
[419674286,1775278251123,-503.32335502,0.00035616,9]
[419674287,1775278251133,-500.0,0.00035616,9]
[419674288,1775278251143,-1079.95,0.00035616,9]
[419674289,1775278251152,-905.27,0.00035616,7]
[419674290,1775278251162,-500.0,0.00035616,9]
[419674291,1775278251172,-500.0,0.00035616,9]
[419674292,1775278251182,-1453.37,0.00035616,9]
[419674293,1775278251192,-527.8,0.00035616,9]
[419674294,1775278251201,-975.77,0.00035616,9]
[419674295,1775278251211,-500.0,0.00035616,9]
[419674296,1775278251220,-500.0,0.00035616,9]
[419674297,1775278251230,-500.0,0.00035616,7]
[419674298,1775278251240,-500.0,0.00035616,9]
[419674299,1775278251250,-500.0,0.00035616,9]
[419674300,1775278251260,-500.0,0.00035616,9]
[419674301,1775278251269,-500.0,0.00035616,9]
[419674302,1775278251278,-500.0,0.00035616,9]
[419674303,1775278251288,-167.711017,0.00035616,9]
[419674304,1775278251298,-300.51667541,0.00035616,9]
[419674305,1775278251307,-1067.48,0.00035616,9]
[419674306,1775278251317,-500.0,0.00035616,9]
[419674307,1775278251327,-2424.23,0.00035616,9]
[419674308,1775278251337,-502.75,0.00035616,9]
[419674309,1775278251347,-1974.87,0.00035616,9]
[419674310,1775278251356,-500.0,0.00035616,9]
[419674311,1775278251366,-500.0,0.00035616,9]
[419674312,1775278251376,-500.0,0.00035616,9]
[419674313,1775278251385,-500.0,0.00035616,9]
[419674314,1775278251395,-500.0,0.00035616,9]
[419674315,1775278251405,-973.37,0.00035616,9]
[419674316,1775278251415,-500.0,0.00035616,9]
[419674317,1775278251425,-500.0,0.00035616,9]
[419674318,1775278251434,-500.0,0.00035616,9]
[419674319,1775278251444,-500.0,0.00035616,9]
[419674320,1775278251453,-500.0,0.00035616,9]
[419674321,1775278251463,-588.89,0.00035616,9]
[419674322,1775278251474,-500.0,0.00035616,9]
[419674323,1775278251484,-500.0,0.00035616,9]
[419674324,1775278251493,-500.0,0.00035616,9]
[419674325,1775278251503,-500.0,0.00035616,9]
[419674326,1775278251516,-500.0,0.00035616,9]
[419674327,1775278251526,-500.0,0.00035616,9]
[419674328,1775278251535,-500.0,0.00035616,9]
[419674329,1775278251545,-500.0,0.00035616,9]
[419674330,1775278251554,-500.0,0.00035616,9]
[419674331,1775278251564,-776.37,0.00035616,9]
[419674332,1775278251573,-500.0,0.00035616,9]
[419674333,1775278251583,-500.0,0.00035616,9]
[419674334,1775278251593,-500.0,0.00035616,9]
[419674335,1775278251602,-500.0,0.00035616,9]
[419674336,1775278251612,-500.0,0.00035616,9]
[419674337,1775278251621,-500.0,0.00035616,9]
[419674338,1775278251631,-500.0,0.00035616,9]
[419674339,1775278251641,-500.0,0.00035616,9]
[419674340,1775278251651,-500.0,0.00035616,9]
[419674341,1775278251660,-500.0,0.00035616,9]
[419674342,1775278251670,-501.1198041,0.00035616,9]
[419674343,1775278251679,-345.3020373,0.00035616,9]
[419674344,1775278251689,-500.0,0.00035616,9]
[419674345,1775278251698,-500.0,0.00035616,9]
[419674346,1775278251708,-500.0,0.00035616,9]
[419674347,1775278251718,-500.0,0.00035616,9]
[419674348,1775278251728,-799.84,0.00035616,9]
[419674349,1775278251737,-500.0,0.00035616,9]
[419674350,1775278251747,-500.0,0.00035616,9]
[419674351,1775278251756,-500.0,0.00035616,9]
[419674352,1775278251766,-1127.68,0.00035616,9]
[419674353,1775278251776,-500.0,0.00035616,30]
[419674354,1775278251785,-500.0,0.00035616,9]
[419674355,1775278251795,-757.82,0.00035616,9]
[419674356,1775278252057,-937.52,0.00035616,9]
[419674357,1775278252078,-500.0,0.00035616,9]
[419674358,1775278252088,-500.0,0.00035616,9]
[419674359,1775278252099,-500.0,0.00035616,9]
[419674360,1775278252109,-500.0,0.00035616,9]
[419674361,1775278252119,-500.0,0.00035616,9]
[419674362,1775278252129,-500.0,0.00035616,9]
[419674363,1775278252138,-500.0,0.00035616,9]
[419674364,1775278252148,-500.0,0.00035616,9]
[419674365,1775278252158,-500.0,0.00035616,9]
[419674366,1775278252168,-500.0,0.00035616,9]
[419674367,1775278252177,-797.42,0.00035616,9]
[419674368,1775278252187,-636.1,0.00035616,9]
[419674369,1775278252197,-160.09266056,0.00035616,9]
[419674370,1775278252207,-500.0,0.00035616,9]
[419674371,1775278252218,-500.0,0.00035616,9]
[419674372,1775278252227,-1082.72,0.00035616,9]
[419674373,1775278252238,-500.0,0.00035616,9]
[419674374,1775278252248,-500.0,0.00035616,9]